[Event "Early-Titled-Tuesday-Blitz-October-24-2023"]
[Site "Chess.com"]
[Date "2023.10.24"]
[Round "8"]
[White "djano"]
[Black "N4700000"]
[Result "1-0"]
[WhiteElo "2679"]
[BlackElo "2550"]
[TimeControl "180+1"]
[EndTime "9:24:38 PDT"]
[Termination "djano won by checkmate"]

1. e4 {[%clk 0:03:00.9]} 1... c6 {[%clk 0:02:59.4]} 2. d4 {[%clk 0:03:00.4]}
2... d5 {[%clk 0:02:59.2]} 3. exd5 {[%clk 0:03:01.3]} 3... cxd5 {[%clk
0:02:59.6]} 4. Bd3 {[%clk 0:03:01.7]} 4... Nc6 {[%clk 0:02:59]} 5. c3 {[%clk
0:03:01.9]} 5... Nf6 {[%clk 0:02:59.1]} 6. Bf4 {[%clk 0:03:02.1]} 6... Bg4
{[%clk 0:02:58.5]} 7. Qb3 {[%clk 0:03:01.9]} 7... Qd7 {[%clk 0:02:58.6]} 8. Nd2
{[%clk 0:03:00.9]} 8... e6 {[%clk 0:02:57.8]} 9. Ngf3 {[%clk 0:03:01]} 9... Bd6
{[%clk 0:02:57.8]} 10. Bxd6 {[%clk 0:02:56.2]} 10... Qxd6 {[%clk 0:02:58.7]} 11.
O-O {[%clk 0:02:56.6]} 11... O-O {[%clk 0:02:58.4]} 12. Rae1 {[%clk 0:02:55.9]}
12... Bxf3 {[%clk 0:02:57]} 13. Nxf3 {[%clk 0:02:55.5]} 13... Qc7 {[%clk
0:02:55.1]} 14. Qc2 {[%clk 0:02:49.6]} 14... g6 {[%clk 0:02:48.4]} 15. Qd2
{[%clk 0:02:44]} 15... Kg7 {[%clk 0:02:45.3]} 16. g3 {[%clk 0:02:38.4]} 16... a6
{[%clk 0:02:40.8]} 17. h4 {[%clk 0:02:34.1]} 17... b5 {[%clk 0:02:35.4]} 18. a3
{[%clk 0:02:32.7]} 18... Rab8 {[%clk 0:02:33.4]} 19. Kg2 {[%clk 0:02:27.5]}
19... h6 {[%clk 0:02:15]} 20. Re2 {[%clk 0:02:07]} 20... a5 {[%clk 0:02:12.8]}
21. b4 {[%clk 0:02:01.5]} 21... Rfc8 {[%clk 0:02:01.5]} 22. Rh1 {[%clk
0:01:30.1]} 22... Ne7 {[%clk 0:01:40.8]} 23. Rc1 {[%clk 0:01:15.4]} 23... Nf5
{[%clk 0:01:34.2]} 24. Rc2 {[%clk 0:00:52.4]} 24... Nd6 {[%clk 0:01:30.2]} 25.
Ne5 {[%clk 0:00:43.8]} 25... Nfe4 {[%clk 0:01:22.1]} 26. Qf4 {[%clk 0:00:42.9]}
26... f6 {[%clk 0:01:05.6]} 27. Ng4 {[%clk 0:00:38.4]} 27... g5 {[%clk
0:01:05.4]} 28. hxg5 {[%clk 0:00:38.4]} 28... hxg5 {[%clk 0:01:06.3]} 29. Qc1
{[%clk 0:00:36.4]} 29... Rh8 {[%clk 0:00:50.4]} 30. f3 {[%clk 0:00:25]} 30...
Nxg3 {[%clk 0:00:48.9]} 31. Rxe6 {[%clk 0:00:24.9]} 31... Ndf5 {[%clk
0:00:37.9]} 32. Rxf6 {[%clk 0:00:17.9]} 32... Ne2 {[%clk 0:00:37.3]} 33. Qxg5+
{[%clk 0:00:17]} 33... Kh7 {[%clk 0:00:31]} 34. Qg6# {[%clk 0:00:17.4]} 1-0

[Event "Early-Titled-Tuesday-Blitz-October-24-2023"]
[Site "Chess.com"]
[Date "2023.10.24"]
[Round "8"]
[White "Rodalquilar"]
[Black "MaxLeto"]
[Result "1-0"]
[WhiteElo "2747"]
[BlackElo "2558"]
[TimeControl "180+1"]
[EndTime "9:24:38 PDT"]
[Termination "Rodalquilar won on time"]

1. d4 {[%clk 0:03:00.9]} 1... h5 {[%clk 0:02:58.8]} 2. e4 {[%clk 0:02:59.6]}
2... h4 {[%clk 0:02:53]} 3. Nc3 {[%clk 0:02:59]} 3... c6 {[%clk 0:02:51.7]} 4.
Nf3 {[%clk 0:02:33.2]} 4... h3 {[%clk 0:02:51.3]} 5. g3 {[%clk 0:02:31.8]} 5...
d5 {[%clk 0:02:51.2]} 6. exd5 {[%clk 0:02:22.8]} 6... cxd5 {[%clk 0:02:52.1]} 7.
Bf4 {[%clk 0:02:22.9]} 7... Nf6 {[%clk 0:02:44.6]} 8. Ne5 {[%clk 0:02:12.3]}
8... a6 {[%clk 0:02:42]} 9. Qf3 {[%clk 0:02:11.9]} 9... Nc6 {[%clk 0:02:39.2]}
10. O-O-O {[%clk 0:01:41.6]} 10... Nxe5 {[%clk 0:02:24.2]} 11. dxe5 {[%clk
0:01:42.5]} 11... Bg4 {[%clk 0:02:24.7]} 12. Qd3 {[%clk 0:01:42.6]} 12... Bxd1
{[%clk 0:02:21.9]} 13. exf6 {[%clk 0:01:42.9]} 13... Bh5 {[%clk 0:02:03.8]} 14.
Nxd5 {[%clk 0:01:41.9]} 14... Rc8 {[%clk 0:02:02.8]} 15. Qb3 {[%clk 0:00:43]}
15... e6 {[%clk 0:01:56.9]} 16. Qxb7 {[%clk 0:00:30.4]} 16... Bf3 {[%clk
0:00:25]} 17. Bxa6 {[%clk 0:00:29.7]} 17... Bxd5 {[%clk 0:00:03.9]} 18. Bb5+
{[%clk 0:00:26.1]} 18... Bc6 {[%clk 0:00:02.3]} 19. Rd1 {[%clk 0:00:13.2]} 1-0

[Event "Early-Titled-Tuesday-Blitz-October-24-2023"]
[Site "Chess.com"]
[Date "2023.10.24"]
[Round "8"]
[White "esrosenberg"]
[Black "LuisFSiles"]
[Result "1/2-1/2"]
[WhiteElo "2454"]
[BlackElo "2291"]
[TimeControl "180+1"]
[EndTime "9:24:45 PDT"]
[Termination "Game drawn by repetition"]

1. d4 {[%clk 0:03:00.9]} 1... Nf6 {[%clk 0:02:59.2]} 2. Nf3 {[%clk 0:03:00.4]}
2... g6 {[%clk 0:02:59.5]} 3. Nc3 {[%clk 0:03:00.3]} 3... d5 {[%clk 0:02:58.9]}
4. Bf4 {[%clk 0:02:59.9]} 4... c5 {[%clk 0:02:53.1]} 5. e3 {[%clk 0:02:48.7]}
5... a6 {[%clk 0:02:47.4]} 6. h3 {[%clk 0:02:47]} 6... Bg7 {[%clk 0:02:46.2]} 7.
a4 {[%clk 0:02:46.9]} 7... O-O {[%clk 0:02:45.5]} 8. Be2 {[%clk 0:02:25.2]} 8...
cxd4 {[%clk 0:02:34.7]} 9. exd4 {[%clk 0:02:24.2]} 9... Nc6 {[%clk 0:02:34.9]}
10. O-O {[%clk 0:02:23.9]} 10... Ne4 {[%clk 0:02:28.4]} 11. Re1 {[%clk
0:01:56.8]} 11... Qa5 {[%clk 0:01:54.2]} 12. Ra3 {[%clk 0:01:28.3]} 12... Nxc3
{[%clk 0:01:50.7]} 13. bxc3 {[%clk 0:01:21.1]} 13... Bf5 {[%clk 0:01:28.2]} 14.
Bd3 {[%clk 0:01:16.8]} 14... Bxd3 {[%clk 0:01:26]} 15. cxd3 {[%clk 0:01:16.9]}
15... e6 {[%clk 0:01:24.3]} 16. Qb3 {[%clk 0:01:09.9]} 16... b5 {[%clk 0:00:54]}
17. axb5 {[%clk 0:01:07.5]} 17... Qxb5 {[%clk 0:00:53.9]} 18. Qxb5 {[%clk
0:00:40.5]} 18... axb5 {[%clk 0:00:53.5]} 19. Rb3 {[%clk 0:00:36.4]} 19... b4
{[%clk 0:00:22.9]} 20. cxb4 {[%clk 0:00:36.1]} 20... Nxd4 {[%clk 0:00:23.2]} 21.
Nxd4 {[%clk 0:00:36.2]} 21... Bxd4 {[%clk 0:00:24.1]} 22. b5 {[%clk 0:00:33.5]}
22... Ra2 {[%clk 0:00:19.1]} 23. Be3 {[%clk 0:00:33.4]} 23... Bxe3 {[%clk
0:00:17.1]} 24. fxe3 {[%clk 0:00:33.1]} 24... Rc8 {[%clk 0:00:15.3]} 25. b6
{[%clk 0:00:17.5]} 25... Rcc2 {[%clk 0:00:15.1]} 26. b7 {[%clk 0:00:18.2]} 26...
Rxg2+ {[%clk 0:00:14.9]} 27. Kh1 {[%clk 0:00:19]} 27... Rh2+ {[%clk 0:00:12.7]}
28. Kg1 {[%clk 0:00:19.5]} 28... Rag2+ {[%clk 0:00:12.4]} 29. Kf1 {[%clk
0:00:19.8]} 29... Rf2+ {[%clk 0:00:11.4]} 30. Kg1 {[%clk 0:00:20.3]} 30... Rfg2+
{[%clk 0:00:11]} 31. Kf1 {[%clk 0:00:20.8]} 31... Rf2+ {[%clk 0:00:11.5]} 32.
Kg1 {[%clk 0:00:21.5]} 32... Rfg2+ {[%clk 0:00:12]} 1/2-1/2

[Event "Early-Titled-Tuesday-Blitz-October-24-2023"]
[Site "Chess.com"]
[Date "2023.10.24"]
[Round "8"]
[White "zverr1"]
[Black "Jojo_898"]
[Result "1-0"]
[WhiteElo "2498"]
[BlackElo "2345"]
[TimeControl "180+1"]
[EndTime "9:24:45 PDT"]
[Termination "zverr1 won by resignation"]

1. e4 {[%clk 0:03:00.9]} 1... d6 {[%clk 0:02:59.8]} 2. d4 {[%clk 0:03:00.8]}
2... Nf6 {[%clk 0:03:00.1]} 3. Nc3 {[%clk 0:03:01.4]} 3... g5 {[%clk 0:03:00.1]}
4. Bxg5 {[%clk 0:02:59.6]} 4... Bg7 {[%clk 0:03:00.1]} 5. e5 {[%clk 0:02:41.8]}
5... Nfd7 {[%clk 0:02:51.2]} 6. exd6 {[%clk 0:02:39.8]} 6... cxd6 {[%clk
0:02:50.9]} 7. Nf3 {[%clk 0:02:37.7]} 7... Nc6 {[%clk 0:02:50]} 8. Be2 {[%clk
0:02:28.4]} 8... Qa5 {[%clk 0:02:49.6]} 9. Qd2 {[%clk 0:02:24.5]} 9... Rg8
{[%clk 0:02:42.2]} 10. Nb5 {[%clk 0:02:08.6]} 10... Qb6 {[%clk 0:02:22]} 11.
O-O-O {[%clk 0:02:04.7]} 11... a6 {[%clk 0:02:20.1]} 12. Nc3 {[%clk 0:02:03.4]}
12... Nxd4 {[%clk 0:02:10.3]} 13. Be3 {[%clk 0:01:32]} 13... Nxf3 {[%clk
0:02:08.1]} 14. Bxf3 {[%clk 0:01:28.7]} 14... Qa5 {[%clk 0:02:02.8]} 15. Bd4
{[%clk 0:01:19.6]} 15... Ne5 {[%clk 0:01:56.4]} 16. Be2 {[%clk 0:00:51.8]} 16...
Be6 {[%clk 0:01:37.5]} 17. Kb1 {[%clk 0:00:41.4]} 17... Rc8 {[%clk 0:01:30]} 18.
a3 {[%clk 0:00:41.5]} 18... b5 {[%clk 0:01:23.7]} 19. f4 {[%clk 0:00:39.9]}
19... Nc4 {[%clk 0:01:15.8]} 20. Bxc4 {[%clk 0:00:39.6]} 20... Rxc4 {[%clk
0:01:16]} 21. Bxg7 {[%clk 0:00:32]} 21... Rxg7 {[%clk 0:01:16]} 22. g3 {[%clk
0:00:25.9]} 22... b4 {[%clk 0:01:13.4]} 23. Na2 {[%clk 0:00:24.6]} 23... Qb6
{[%clk 0:01:02.9]} 24. Nxb4 {[%clk 0:00:22]} 24... a5 {[%clk 0:01:02.9]} 25. Nd5
{[%clk 0:00:19.8]} 25... Qb5 {[%clk 0:00:44.9]} 26. Rhe1 {[%clk 0:00:16.9]}
26... Rc5 {[%clk 0:00:37.5]} 27. Nc3 {[%clk 0:00:05]} 27... Kd7 {[%clk 0:00:30]}
28. Nxb5 {[%clk 0:00:04.7]} 1-0

[Event "Early-Titled-Tuesday-Blitz-October-24-2023"]
[Site "Chess.com"]
[Date "2023.10.24"]
[Round "8"]
[White "Oleksandr_Bortnyk"]
[Black "AvitalBor"]
[Result "0-1"]
[WhiteElo "3018"]
[BlackElo "2870"]
[TimeControl "180+1"]
[EndTime "9:24:46 PDT"]
[Termination "AvitalBor won on time"]

1. e4 {[%clk 0:03:00.9]} 1... e5 {[%clk 0:02:59.5]} 2. Bc4 {[%clk 0:02:54.4]}
2... c6 {[%clk 0:02:58.3]} 3. Nf3 {[%clk 0:02:52.4]} 3... d5 {[%clk 0:02:46.6]}
4. Bb3 {[%clk 0:02:51.8]} 4... Bd6 {[%clk 0:02:34.3]} 5. d4 {[%clk 0:02:23.7]}
5... dxe4 {[%clk 0:02:21.7]} 6. Ng5 {[%clk 0:02:21.6]} 6... Nh6 {[%clk 0:02:17]}
7. Qh5 {[%clk 0:02:17.2]} 7... O-O {[%clk 0:02:04.2]} 8. dxe5 {[%clk 0:02:00]}
8... Qa5+ {[%clk 0:01:55.1]} 9. Nc3 {[%clk 0:01:51.3]} 9... Bg4 {[%clk
0:01:46.3]} 10. Qh4 {[%clk 0:01:39.6]} 10... Bxe5 {[%clk 0:01:46.6]} 11. Bd2
{[%clk 0:01:20.7]} 11... Bxc3 {[%clk 0:01:26.6]} 12. Bxc3 {[%clk 0:01:20.8]}
12... Qb5 {[%clk 0:01:23.6]} 13. f3 {[%clk 0:01:07.1]} 13... exf3 {[%clk
0:01:22.2]} 14. O-O-O {[%clk 0:01:07.6]} 14... fxg2 {[%clk 0:01:17.1]} 15. Rhe1
{[%clk 0:00:11.6]} 15... Bxd1 {[%clk 0:01:11.8]} 16. Nxf7 {[%clk 0:00:02]} 16...
Nxf7 {[%clk 0:00:22.3]} 17. Qg3 {[%clk 0:00:02.5]} 17... g6 {[%clk 0:00:21.5]}
18. Rxd1 {[%clk 0:00:02.4]} 18... Qf1 {[%clk 0:00:13.3]} 19. Bd4 {[%clk
0:00:02]} 19... Nd7 {[%clk 0:00:12.8]} 20. Qh4 {[%clk 0:00:01.5]} 20... Rae8
{[%clk 0:00:08.9]} 21. Qxh7+ {[%clk 0:00:02]} 21... Kxh7 {[%clk 0:00:08.4]} 0-1

[Event "Early-Titled-Tuesday-Blitz-October-24-2023"]
[Site "Chess.com"]
[Date "2023.10.24"]
[Round "8"]
[White "LiemLe"]
[Black "Drags95"]
[Result "0-1"]
[WhiteElo "2956"]
[BlackElo "2854"]
[TimeControl "180+1"]
[EndTime "9:24:46 PDT"]
[Termination "Drags95 won by resignation"]

1. Nf3 {[%clk 0:03:00.9]} 1... d5 {[%clk 0:02:58.9]} 2. e3 {[%clk 0:03:00.9]}
2... Nf6 {[%clk 0:02:58.2]} 3. c4 {[%clk 0:03:01.2]} 3... c6 {[%clk 0:02:58.4]}
4. Nc3 {[%clk 0:03:00.3]} 4... e6 {[%clk 0:02:58.5]} 5. b3 {[%clk 0:02:58]} 5...
Bd6 {[%clk 0:02:59.1]} 6. Bb2 {[%clk 0:02:57.9]} 6... O-O {[%clk 0:02:59.7]} 7.
Be2 {[%clk 0:02:54.6]} 7... b6 {[%clk 0:03:00.1]} 8. Qc2 {[%clk 0:02:49.7]} 8...
Bb7 {[%clk 0:03:00.2]} 9. Rg1 {[%clk 0:02:47.1]} 9... Na6 {[%clk 0:02:55.5]} 10.
g4 {[%clk 0:02:44]} 10... e5 {[%clk 0:02:54.7]} 11. g5 {[%clk 0:02:43.2]} 11...
Nd7 {[%clk 0:02:54.6]} 12. h4 {[%clk 0:02:13.5]} 12... Qe7 {[%clk 0:02:54.5]}
13. a3 {[%clk 0:02:02.2]} 13... b5 {[%clk 0:02:47.4]} 14. h5 {[%clk 0:01:32.6]}
14... b4 {[%clk 0:02:46.4]} 15. axb4 {[%clk 0:01:02.1]} 15... Nxb4 {[%clk
0:02:47.3]} 16. Qb1 {[%clk 0:00:59.3]} 16... e4 {[%clk 0:02:36]} 17. Nd4 {[%clk
0:00:58.6]} 17... Ne5 {[%clk 0:02:36.5]} 18. Nf5 {[%clk 0:00:54.3]} 18... Qd7
{[%clk 0:02:31.9]} 19. Nxd6 {[%clk 0:00:53.5]} 19... Qxd6 {[%clk 0:02:26.6]} 20.
Ba3 {[%clk 0:00:43.2]} 20... c5 {[%clk 0:02:17.8]} 21. Bxb4 {[%clk 0:00:34.2]}
21... cxb4 {[%clk 0:02:17.4]} 22. Nxd5 {[%clk 0:00:24.1]} 22... Bxd5 {[%clk
0:02:18.3]} 23. cxd5 {[%clk 0:00:24.9]} 23... Qxd5 {[%clk 0:02:19]} 24. Qb2
{[%clk 0:00:24]} 24... Rfd8 {[%clk 0:02:12.8]} 25. Kf1 {[%clk 0:00:22.2]} 25...
a5 {[%clk 0:02:05]} 26. h6 {[%clk 0:00:22.1]} 26... Qe6 {[%clk 0:01:56.5]} 27.
Rc1 {[%clk 0:00:17.5]} 27... Rac8 {[%clk 0:01:47.6]} 28. Rxc8 {[%clk 0:00:17.1]}
28... Rxc8 {[%clk 0:01:48.5]} 29. Bg4 {[%clk 0:00:17.4]} 29... Qa6+ {[%clk
0:01:35.3]} 30. Kg2 {[%clk 0:00:17.7]} 30... Rc5 {[%clk 0:01:33.6]} 31. Rc1
{[%clk 0:00:16.2]} 31... Rxc1 {[%clk 0:01:04.3]} 32. Qxe5 {[%clk 0:00:16]} 32...
Qf1+ {[%clk 0:01:02.4]} 33. Kg3 {[%clk 0:00:15.7]} 33... Qg1+ {[%clk 0:01:02.7]}
34. Kf4 {[%clk 0:00:09.6]} 34... Qh2+ {[%clk 0:01:02.1]} 35. Kxe4 {[%clk
0:00:09.7]} 35... Qxe5+ {[%clk 0:01:01.8]} 36. Kxe5 {[%clk 0:00:10.3]} 36... Rb1
{[%clk 0:01:00.8]} 37. d4 {[%clk 0:00:08.9]} 37... Rxb3 {[%clk 0:01:01.1]} 38.
d5 {[%clk 0:00:09.5]} 38... a4 {[%clk 0:00:56.8]} 39. Bf5 {[%clk 0:00:08.5]}
39... a3 {[%clk 0:00:52.2]} 40. d6 {[%clk 0:00:09]} 40... a2 {[%clk 0:00:52.6]}
41. d7 {[%clk 0:00:06.5]} 41... a1=Q+ {[%clk 0:00:52.7]} 42. Kd5 {[%clk
0:00:06.5]} 42... Qa5+ {[%clk 0:00:52.6]} 0-1

[Event "Early-Titled-Tuesday-Blitz-October-24-2023"]
[Site "Chess.com"]
[Date "2023.10.24"]
[Round "8"]
[White "Matols"]
[Black "Barmen_EV"]
[Result "0-1"]
[WhiteElo "2399"]
[BlackElo "2504"]
[TimeControl "180+1"]
[EndTime "9:24:47 PDT"]
[Termination "Barmen_EV won on time"]

1. d4 {[%clk 0:03:00.9]} 1... Nf6 {[%clk 0:02:57.9]} 2. c4 {[%clk 0:03:01.4]}
2... e6 {[%clk 0:02:58.1]} 3. g3 {[%clk 0:03:01.7]} 3... d5 {[%clk 0:02:58.1]}
4. Nf3 {[%clk 0:03:01.5]} 4... Bb4+ {[%clk 0:02:56.9]} 5. Bd2 {[%clk 0:03:01.1]}
5... Be7 {[%clk 0:02:54.7]} 6. Bg2 {[%clk 0:03:01.1]} 6... dxc4 {[%clk
0:02:52.8]} 7. Qc2 {[%clk 0:02:54.7]} 7... O-O {[%clk 0:02:27.8]} 8. Qxc4 {[%clk
0:02:52.5]} 8... Bd7 {[%clk 0:02:27.7]} 9. O-O {[%clk 0:02:50]} 9... Bc6 {[%clk
0:02:28]} 10. Nc3 {[%clk 0:02:42]} 10... Nbd7 {[%clk 0:02:27.1]} 11. Qd3 {[%clk
0:02:33.6]} 11... Nd5 {[%clk 0:02:15.8]} 12. Nxd5 {[%clk 0:02:20.4]} 12... Bxd5
{[%clk 0:02:16.7]} 13. e4 {[%clk 0:02:19.6]} 13... Bc6 {[%clk 0:02:16.9]} 14.
Rac1 {[%clk 0:02:15.2]} 14... Nc5 {[%clk 0:02:12.9]} 15. Rxc5 {[%clk 0:01:49.8]}
15... Bxc5 {[%clk 0:02:12.8]} 16. Rc1 {[%clk 0:01:39.3]} 16... Bb6 {[%clk
0:02:10.1]} 17. Bg5 {[%clk 0:01:36.3]} 17... Qd7 {[%clk 0:02:00.7]} 18. Be3
{[%clk 0:01:03.5]} 18... f6 {[%clk 0:02:00]} 19. Nd2 {[%clk 0:00:47]} 19... Rad8
{[%clk 0:01:56]} 20. Qc4 {[%clk 0:00:43.6]} 20... Bxd4 {[%clk 0:01:47.2]} 21.
Bxd4 {[%clk 0:00:42.4]} 21... Qxd4 {[%clk 0:01:48.1]} 22. Qxe6+ {[%clk
0:00:42.7]} 22... Kh8 {[%clk 0:01:48.8]} 23. Nb3 {[%clk 0:00:36.6]} 23... Qe5
{[%clk 0:01:44.7]} 24. Qc4 {[%clk 0:00:28.2]} 24... Bb5 {[%clk 0:01:34.2]} 25.
Qb4 {[%clk 0:00:14.7]} 25... Bd3 {[%clk 0:00:58.9]} 26. Nc5 {[%clk 0:00:12.8]}
26... Qd6 {[%clk 0:00:50.2]} 27. a3 {[%clk 0:00:08.3]} 27... Be2 {[%clk
0:00:35.6]} 28. h4 {[%clk 0:00:03.7]} 28... b6 {[%clk 0:00:34.9]} 29. Na6 {[%clk
0:00:01.3]} 29... Qxb4 {[%clk 0:00:35.3]} 30. Nxb4 {[%clk 0:00:01.7]} 30... Rd1+
{[%clk 0:00:35.7]} 31. Rxd1 {[%clk 0:00:01.4]} 31... Bxd1 {[%clk 0:00:36.6]} 0-1

[Event "Early-Titled-Tuesday-Blitz-October-24-2023"]
[Site "Chess.com"]
[Date "2023.10.24"]
[Round "8"]
[White "diamonds13"]
[Black "Mistango"]
[Result "0-1"]
[WhiteElo "2307"]
[BlackElo "2500"]
[TimeControl "180+1"]
[EndTime "9:24:48 PDT"]
[Termination "Mistango won by resignation"]

1. d4 {[%clk 0:03:00.9]} 1... d5 {[%clk 0:02:57.1]} 2. c4 {[%clk 0:03:01.2]}
2... e6 {[%clk 0:02:57.5]} 3. cxd5 {[%clk 0:03:00.1]} 3... exd5 {[%clk
0:02:57.4]} 4. Nc3 {[%clk 0:03:00.6]} 4... Be7 {[%clk 0:02:57.5]} 5. Bf4 {[%clk
0:03:00.9]} 5... c6 {[%clk 0:02:57.5]} 6. e3 {[%clk 0:03:01.2]} 6... Nf6 {[%clk
0:02:57.7]} 7. h3 {[%clk 0:03:01]} 7... Bf5 {[%clk 0:02:55.3]} 8. g4 {[%clk
0:03:00.4]} 8... Bg6 {[%clk 0:02:55]} 9. Bg2 {[%clk 0:02:59.8]} 9... Qb6 {[%clk
0:02:53.5]} 10. Qd2 {[%clk 0:02:55.6]} 10... Nbd7 {[%clk 0:02:50.7]} 11. Nge2
{[%clk 0:02:55.7]} 11... h5 {[%clk 0:02:41.1]} 12. g5 {[%clk 0:02:54.7]} 12...
Nh7 {[%clk 0:02:41.6]} 13. h4 {[%clk 0:02:53.9]} 13... Nhf8 {[%clk 0:02:41.9]}
14. Bh3 {[%clk 0:02:51.9]} 14... Ne6 {[%clk 0:02:40.5]} 15. Bg3 {[%clk
0:02:48.8]} 15... Rf8 {[%clk 0:02:12.9]} 16. a3 {[%clk 0:02:43.3]} 16... f5
{[%clk 0:02:08.5]} 17. Bf4 {[%clk 0:02:39]} 17... Bh7 {[%clk 0:02:05.3]} 18. Ng3
{[%clk 0:02:29.2]} 18... g6 {[%clk 0:02:04.9]} 19. Nge2 {[%clk 0:02:27.2]} 19...
Bg8 {[%clk 0:01:59.4]} 20. b4 {[%clk 0:02:21.7]} 20... a5 {[%clk 0:01:57]} 21.
Na4 {[%clk 0:02:17.3]} 21... Qd8 {[%clk 0:01:53.1]} 22. Nc5 {[%clk 0:01:35.1]}
22... axb4 {[%clk 0:01:35.5]} 23. Nxb7 {[%clk 0:01:30.5]} 23... Nxf4 {[%clk
0:01:09]} 24. Nxd8 {[%clk 0:01:23.8]} 24... Nxe2 {[%clk 0:01:09.1]} 25. Nxc6
{[%clk 0:01:19]} 25... Nc3 {[%clk 0:01:08.1]} 26. Nxe7 {[%clk 0:01:12.5]} 26...
Kxe7 {[%clk 0:01:08.2]} 27. O-O {[%clk 0:01:12]} 27... Nb6 {[%clk 0:00:51.4]}
28. axb4 {[%clk 0:01:05.8]} 28... Ne4 {[%clk 0:00:51.3]} 29. Qc2 {[%clk
0:00:54.6]} 29... Rfc8 {[%clk 0:00:48.4]} 30. Qb2 {[%clk 0:00:47.2]} 30... Nc4
{[%clk 0:00:47.5]} 31. Qe2 {[%clk 0:00:42.8]} 31... Be6 {[%clk 0:00:37.4]} 32.
Rxa8 {[%clk 0:00:40.7]} 32... Rxa8 {[%clk 0:00:37.2]} 33. Rc1 {[%clk 0:00:37.7]}
33... Rb8 {[%clk 0:00:34.3]} 34. Qe1 {[%clk 0:00:25.7]} 34... Ned2 {[%clk
0:00:32.6]} 35. Bf1 {[%clk 0:00:20.6]} 35... Nf3+ {[%clk 0:00:32.2]} 36. Kg2
{[%clk 0:00:20.2]} 36... Nxe1+ {[%clk 0:00:33.1]} 37. Rxe1 {[%clk 0:00:20.3]}
37... Rxb4 {[%clk 0:00:33.1]} 0-1

[Event "Early-Titled-Tuesday-Blitz-October-24-2023"]
[Site "Chess.com"]
[Date "2023.10.24"]
[Round "8"]
[White "IlyaGrigorjev"]
[Black "Harry_Rakkel"]
[Result "1-0"]
[WhiteElo "2923"]
[BlackElo "2705"]
[TimeControl "180+1"]
[EndTime "9:24:49 PDT"]
[Termination "IlyaGrigorjev won by resignation"]

1. e4 {[%clk 0:03:00.9]} 1... c5 {[%clk 0:02:59.7]} 2. Nf3 {[%clk 0:03:01.5]}
2... d6 {[%clk 0:02:59.5]} 3. d4 {[%clk 0:03:01.6]} 3... cxd4 {[%clk 0:02:59]}
4. Nxd4 {[%clk 0:03:02.5]} 4... Nf6 {[%clk 0:02:58.8]} 5. Nc3 {[%clk 0:03:03.1]}
5... a6 {[%clk 0:02:58.8]} 6. Bg5 {[%clk 0:03:03.6]} 6... Nbd7 {[%clk
0:02:57.7]} 7. Qe2 {[%clk 0:03:03.7]} 7... h6 {[%clk 0:02:55.5]} 8. Bh4 {[%clk
0:03:03.5]} 8... e6 {[%clk 0:02:48.7]} 9. O-O-O {[%clk 0:03:02.9]} 9... b5
{[%clk 0:02:42.1]} 10. f4 {[%clk 0:02:57.8]} 10... Qc7 {[%clk 0:02:38.7]} 11. f5
{[%clk 0:02:47.7]} 11... e5 {[%clk 0:02:34.6]} 12. Nd5 {[%clk 0:02:47.7]} 12...
Qb7 {[%clk 0:02:11.3]} 13. Ne6 {[%clk 0:02:27.9]} 13... Nxd5 {[%clk 0:02:03]}
14. exd5 {[%clk 0:02:23.3]} 14... Nb6 {[%clk 0:01:59.2]} 15. Qh5 {[%clk
0:01:54.7]} 15... Ra7 {[%clk 0:01:21.5]} 16. Bd3 {[%clk 0:01:52.4]} 16... Qxd5
{[%clk 0:01:15.6]} 17. Kb1 {[%clk 0:01:37.4]} 17... Bxe6 {[%clk 0:01:08.3]} 18.
fxe6 {[%clk 0:01:38.3]} 18... Qxe6 {[%clk 0:01:08.5]} 19. Bf2 {[%clk 0:01:24.3]}
19... Rb7 {[%clk 0:01:06.9]} 20. Be4 {[%clk 0:01:21.8]} 20... d5 {[%clk
0:01:01.7]} 21. Bxb6 {[%clk 0:01:21.3]} 21... dxe4 {[%clk 0:00:55.2]} 22. Rd8+
{[%clk 0:01:16.2]} 22... Ke7 {[%clk 0:00:55.3]} 23. Ba5 {[%clk 0:01:06.8]} 23...
g6 {[%clk 0:00:41.5]} 24. Qh4+ {[%clk 0:01:07]} 24... g5 {[%clk 0:00:34.7]} 25.
Qxe4 {[%clk 0:01:06.2]} 25... Ra7 {[%clk 0:00:25.5]} 26. Qb4+ {[%clk 0:00:56.3]}
26... Kf6 {[%clk 0:00:21.5]} 27. Rxf8 {[%clk 0:00:56.8]} 27... Rxf8 {[%clk
0:00:18.7]} 28. Qxf8 {[%clk 0:00:57.7]} 28... Kg6 {[%clk 0:00:18.7]} 29. h4
{[%clk 0:00:55.1]} 29... gxh4 {[%clk 0:00:17.4]} 30. Qg8+ {[%clk 0:00:54.7]}
30... Kh5 {[%clk 0:00:16.4]} 31. Be1 {[%clk 0:00:52.3]} 31... Qg6 {[%clk
0:00:12.2]} 32. Rxh4+ {[%clk 0:00:47.3]} 32... Kg5 {[%clk 0:00:12]} 33. Qd8+
{[%clk 0:00:48.2]} 33... Kf5 {[%clk 0:00:11.1]} 34. g4+ {[%clk 0:00:44.1]} 34...
Ke6 {[%clk 0:00:06.7]} 35. Qb6+ {[%clk 0:00:42.2]} 1-0